[Event "Late-Titled-Tuesday-Blitz-January-23-2024"]
[Site "Chess.com"]
[Date "2024.01.23"]
[Round "5"]
[White "Jarrahi2452"]
[Black "ErikRonka"]
[Result "1-0"]
[WhiteElo "2652"]
[BlackElo "2483"]
[TimeControl "180+1"]
[EndTime "14:54:13 PST"]
[Termination "Jarrahi2452 won on time"]

1. d4 {[%clk 0:03:00.9]} 1... d5 {[%clk 0:02:59.9]} 2. Bf4 {[%clk 0:03:01]} 2...
c5 {[%clk 0:03:00]} 3. e3 {[%clk 0:03:01]} 3... Nc6 {[%clk 0:03:00.2]} 4. c3
{[%clk 0:03:00.4]} 4... Nf6 {[%clk 0:02:58.8]} 5. Nd2 {[%clk 0:03:00.6]} 5...
cxd4 {[%clk 0:02:48.4]} 6. exd4 {[%clk 0:03:00.1]} 6... Bg4 {[%clk 0:02:48.8]}
7. Ngf3 {[%clk 0:02:58.1]} 7... e6 {[%clk 0:02:47.8]} 8. Qb3 {[%clk 0:02:56.7]}
8... Qc8 {[%clk 0:02:47.6]} 9. Bd3 {[%clk 0:02:55.4]} 9... Bh5 {[%clk
0:02:47.5]} 10. O-O {[%clk 0:02:53.8]} 10... Bg6 {[%clk 0:02:48]} 11. Bb5 {[%clk
0:02:46.4]} 11... Be7 {[%clk 0:02:29.7]} 12. Ne5 {[%clk 0:02:42.3]} 12... O-O
{[%clk 0:02:29.9]} 13. Nxg6 {[%clk 0:02:36.9]} 13... hxg6 {[%clk 0:02:30.8]} 14.
Nf3 {[%clk 0:02:35.7]} 14... Ne4 {[%clk 0:02:26.9]} 15. Bd3 {[%clk 0:02:32.3]}
15... Bd6 {[%clk 0:02:26]} 16. Bxe4 {[%clk 0:02:22.7]} 16... Bxf4 {[%clk
0:02:25.9]} 17. Bd3 {[%clk 0:02:22.8]} 17... Qd7 {[%clk 0:02:23.6]} 18. Rfe1
{[%clk 0:02:21.7]} 18... Rab8 {[%clk 0:02:20.3]} 19. Rad1 {[%clk 0:02:15.5]}
19... Rfc8 {[%clk 0:02:13.6]} 20. Re2 {[%clk 0:02:08.2]} 20... a6 {[%clk
0:01:58.5]} 21. Rde1 {[%clk 0:02:03.1]} 21... b5 {[%clk 0:01:50.7]} 22. Qd1
{[%clk 0:01:57.7]} 22... a5 {[%clk 0:01:47.1]} 23. b3 {[%clk 0:01:42.5]} 23...
b4 {[%clk 0:01:33.2]} 24. c4 {[%clk 0:01:42.3]} 24... dxc4 {[%clk 0:01:34.1]}
25. Bxc4 {[%clk 0:01:39.6]} 25... Nd8 {[%clk 0:00:53.2]} 26. d5 {[%clk
0:01:36.5]} 26... exd5 {[%clk 0:00:43.4]} 27. Qxd5 {[%clk 0:01:35.9]} 27... Qxd5
{[%clk 0:00:37.7]} 28. Bxd5 {[%clk 0:01:36.8]} 28... Nc6 {[%clk 0:00:22.7]} 29.
g3 {[%clk 0:01:14.1]} 29... Bd6 {[%clk 0:00:11.3]} 30. Ng5 {[%clk 0:01:14.2]}
30... Rb7 {[%clk 0:00:01.4]} 31. Rc2 {[%clk 0:01:05.2]} 31... Na7 {[%clk
0:00:01.1]} 32. Rxc8+ {[%clk 0:01:00.3]} 32... Nxc8 {[%clk 0:00:02]} 33. Re8+
{[%clk 0:01:00.9]} 33... Bf8 {[%clk 0:00:02.3]} 34. Bxb7 {[%clk 0:00:55.1]}
34... Nd6 {[%clk 0:00:03.2]} 35. Rb8 {[%clk 0:00:49.8]} 35... f6 {[%clk
0:00:01.9]} 36. Ne6 {[%clk 0:00:46.8]} 36... Kf7 {[%clk 0:00:01.5]} 37. Nxf8
{[%clk 0:00:46.4]} 1-0

[Event "Late-Titled-Tuesday-Blitz-January-23-2024"]
[Site "Chess.com"]
[Date "2024.01.23"]
[Round "5"]
[White "hsd2016"]
[Black "Cheer_Down"]
[Result "1-0"]
[WhiteElo "2297"]
[BlackElo "2418"]
[TimeControl "180+1"]
[EndTime "14:54:16 PST"]
[Termination "hsd2016 won by checkmate"]

1. e4 {[%clk 0:03:00.9]} 1... c5 {[%clk 0:02:56]} 2. Nf3 {[%clk 0:03:00.5]} 2...
d6 {[%clk 0:02:55.8]} 3. d4 {[%clk 0:03:00.4]} 3... cxd4 {[%clk 0:02:55.9]} 4.
Nxd4 {[%clk 0:03:01.3]} 4... Nf6 {[%clk 0:02:56.2]} 5. Nc3 {[%clk 0:03:02]} 5...
a6 {[%clk 0:02:55.2]} 6. Rg1 {[%clk 0:03:01]} 6... b5 {[%clk 0:02:52]} 7. g4
{[%clk 0:02:55.6]} 7... Bb7 {[%clk 0:02:52.1]} 8. Bg2 {[%clk 0:02:47.7]} 8... h6
{[%clk 0:02:49.8]} 9. a3 {[%clk 0:02:28.6]} 9... Nfd7 {[%clk 0:02:48.6]} 10. Be3
{[%clk 0:02:26.8]} 10... e6 {[%clk 0:02:46.5]} 11. Qd2 {[%clk 0:02:20.8]} 11...
Ne5 {[%clk 0:02:43.8]} 12. O-O-O {[%clk 0:02:15.9]} 12... Nxg4 {[%clk
0:02:29.4]} 13. Bf3 {[%clk 0:02:04.6]} 13... Nxe3 {[%clk 0:02:28.4]} 14. Qxe3
{[%clk 0:02:03.8]} 14... Nd7 {[%clk 0:02:26.7]} 15. Bh5 {[%clk 0:00:13.6]} 15...
Qh4 {[%clk 0:02:14.9]} 16. Nxe6 {[%clk 0:00:12.9]} 16... Qxh5 {[%clk 0:02:07.7]}
17. Nc7+ {[%clk 0:00:12.9]} 17... Kd8 {[%clk 0:02:06.2]} 18. Nxa8 {[%clk
0:00:13.8]} 18... Bxa8 {[%clk 0:01:39.7]} 19. Qa7 {[%clk 0:00:13.5]} 19... Bc6
{[%clk 0:01:39.4]} 20. Qxa6 {[%clk 0:00:13.7]} 20... Qc5 {[%clk 0:01:38.1]} 21.
Nd5 {[%clk 0:00:10.8]} 21... Bxd5 {[%clk 0:01:26.1]} 22. Rxd5 {[%clk 0:00:10.2]}
22... Qxf2 {[%clk 0:01:24.1]} 23. Rgd1 {[%clk 0:00:10.3]} 23... Qb6 {[%clk
0:01:16]} 24. Qa8+ {[%clk 0:00:09.3]} 24... Kc7 {[%clk 0:01:14.8]} 25. R1d3
{[%clk 0:00:05.5]} 25... Qb7 {[%clk 0:00:41.2]} 26. Qa5+ {[%clk 0:00:05.1]}
26... Kb8 {[%clk 0:00:38.6]} 27. Rxb5 {[%clk 0:00:04.8]} 27... Be7 {[%clk
0:00:28.6]} 28. Rxb7+ {[%clk 0:00:05]} 28... Kxb7 {[%clk 0:00:29.1]} 29. Qb5+
{[%clk 0:00:05.9]} 29... Kc7 {[%clk 0:00:29.2]} 30. Rc3+ {[%clk 0:00:05.9]}
30... Kd8 {[%clk 0:00:29.5]} 31. Qa5+ {[%clk 0:00:04.8]} 31... Ke8 {[%clk
0:00:27.3]} 32. Rc8+ {[%clk 0:00:04.8]} 32... Bd8 {[%clk 0:00:27.5]} 33. Qxd8#
{[%clk 0:00:05.4]} 1-0

[Event "Late-Titled-Tuesday-Blitz-January-23-2024"]
[Site "Chess.com"]
[Date "2024.01.23"]
[Round "5"]
[White "rynos0411"]
[Black "NitaLucian"]
[Result "1-0"]
[WhiteElo "2492"]
[BlackElo "2302"]
[TimeControl "180+1"]
[EndTime "14:54:17 PST"]
[Termination "rynos0411 won by resignation"]

1. e4 {[%clk 0:03:00.9]} 1... d6 {[%clk 0:02:57.3]} 2. d4 {[%clk 0:02:59.5]}
2... Nf6 {[%clk 0:02:58.2]} 3. Nc3 {[%clk 0:02:58.5]} 3... e5 {[%clk 0:02:58.1]}
4. Nf3 {[%clk 0:02:55.8]} 4... Nbd7 {[%clk 0:02:57.4]} 5. Bc4 {[%clk 0:02:55.9]}
5... Be7 {[%clk 0:02:57.3]} 6. O-O {[%clk 0:02:56.4]} 6... O-O {[%clk
0:02:57.9]} 7. a4 {[%clk 0:02:55.9]} 7... c6 {[%clk 0:02:58.3]} 8. Re1 {[%clk
0:02:56.3]} 8... a5 {[%clk 0:02:58.5]} 9. h3 {[%clk 0:02:50.7]} 9... Nb6 {[%clk
0:02:58.4]} 10. Bb3 {[%clk 0:02:50.4]} 10... Nfd7 {[%clk 0:02:58.3]} 11. Qe2
{[%clk 0:02:47.3]} 11... exd4 {[%clk 0:02:58]} 12. Nxd4 {[%clk 0:02:46.8]} 12...
Nc5 {[%clk 0:02:58.4]} 13. Ba2 {[%clk 0:02:43.5]} 13... Nbxa4 {[%clk 0:02:57.7]}
14. Nxa4 {[%clk 0:02:34.6]} 14... Nxa4 {[%clk 0:02:58.6]} 15. Bxf7+ {[%clk
0:02:35.1]} 15... Rxf7 {[%clk 0:02:57.8]} 16. Rxa4 {[%clk 0:02:36]} 16... Bf6
{[%clk 0:02:53.6]} 17. Nf5 {[%clk 0:02:35.1]} 17... b5 {[%clk 0:02:46.7]} 18.
Ra3 {[%clk 0:02:32.2]} 18... a4 {[%clk 0:02:41.3]} 19. Rg3 {[%clk 0:02:27.9]}
19... Bxf5 {[%clk 0:02:37.8]} 20. exf5 {[%clk 0:02:28.8]} 20... Re7 {[%clk
0:02:30.5]} 21. Qd1 {[%clk 0:02:28]} 21... Rxe1+ {[%clk 0:02:29.8]} 22. Qxe1
{[%clk 0:02:28.9]} 22... Qe7 {[%clk 0:02:27.4]} 23. Re3 {[%clk 0:02:28.5]} 23...
Qd7 {[%clk 0:02:24.3]} 24. Re6 {[%clk 0:02:28]} 24... Kf8 {[%clk 0:02:15.1]} 25.
Bf4 {[%clk 0:02:23.8]} 25... d5 {[%clk 0:01:41.9]} 26. c3 {[%clk 0:02:16]} 26...
Re8 {[%clk 0:01:39.5]} 27. Qe3 {[%clk 0:02:13.6]} 27... Kf7 {[%clk 0:01:33.9]}
28. Rxe8 {[%clk 0:01:59.7]} 28... Qxe8 {[%clk 0:01:33.4]} 29. Qc5 {[%clk
0:02:00.6]} 29... Qd7 {[%clk 0:01:23.5]} 30. g4 {[%clk 0:01:59.8]} 30... h6
{[%clk 0:01:22.4]} 31. Kg2 {[%clk 0:01:55.9]} 31... d4 {[%clk 0:01:20.5]} 32.
cxd4 {[%clk 0:01:53]} 32... Bxd4 {[%clk 0:01:19.4]} 33. Qc2 {[%clk 0:01:53.5]}
33... Qd5+ {[%clk 0:01:17.6]} 34. f3 {[%clk 0:01:53.8]} 34... c5 {[%clk
0:00:58.2]} 35. Qe2 {[%clk 0:01:48.5]} 35... b4 {[%clk 0:00:54.9]} 36. h4 {[%clk
0:01:37]} 36... a3 {[%clk 0:00:52.9]} 37. bxa3 {[%clk 0:01:35.5]} 37... bxa3
{[%clk 0:00:53.1]} 38. Qa6 {[%clk 0:01:35.2]} 38... a2 {[%clk 0:00:52.2]} 39. g5
{[%clk 0:01:35.4]} 39... hxg5 {[%clk 0:00:41.4]} 40. Qg6+ {[%clk 0:01:34.4]}
40... Ke7 {[%clk 0:00:31.2]} 41. Bxg5+ {[%clk 0:01:09.6]} 41... Bf6 {[%clk
0:00:27]} 42. Qxg7+ {[%clk 0:01:08.4]} 42... Qf7 {[%clk 0:00:16.3]} 43. Bxf6+
{[%clk 0:01:08.3]} 43... Ke8 {[%clk 0:00:16.6]} 44. Qxf7+ {[%clk 0:00:59.5]}
44... Kxf7 {[%clk 0:00:16.2]} 45. Ba1 {[%clk 0:00:59]} 45... Kg8 {[%clk
0:00:13.3]} 46. Kf2 {[%clk 0:00:58.5]} 46... Kh7 {[%clk 0:00:14.2]} 47. Ke2
{[%clk 0:00:58.6]} 47... Kh6 {[%clk 0:00:14.7]} 48. Kd3 {[%clk 0:00:59.1]} 48...
Kh5 {[%clk 0:00:15.3]} 49. Kc4 {[%clk 0:00:59.6]} 49... Kxh4 {[%clk 0:00:15.8]}
50. Kxc5 {[%clk 0:00:59.9]} 50... Kg5 {[%clk 0:00:14.7]} 51. f6 {[%clk
0:01:00.5]} 51... Kg6 {[%clk 0:00:14.9]} 52. Kb4 {[%clk 0:01:01]} 52... Kf7
{[%clk 0:00:15.8]} 53. Ka3 {[%clk 0:01:01.5]} 53... Ke6 {[%clk 0:00:15.4]} 54.
Kxa2 {[%clk 0:01:02.4]} 54... Kf7 {[%clk 0:00:15.8]} 55. Kb3 {[%clk 0:01:03.3]}
55... Kf8 {[%clk 0:00:16.5]} 56. Kc4 {[%clk 0:01:04.2]} 1-0

[Event "Late-Titled-Tuesday-Blitz-January-23-2024"]
[Site "Chess.com"]
[Date "2024.01.23"]
[Round "5"]
[White "greekplayer1"]
[Black "Harsha_Bharathakoti"]
[Result "1-0"]
[WhiteElo "2717"]
[BlackElo "2896"]
[TimeControl "180+1"]
[EndTime "14:54:22 PST"]
[Termination "greekplayer1 won on time"]

1. e4 {[%clk 0:02:56.9]} 1... c5 {[%clk 0:02:56.1]} 2. Nf3 {[%clk 0:02:54.4]}
2... e6 {[%clk 0:02:56.7]} 3. d4 {[%clk 0:02:51.8]} 3... cxd4 {[%clk 0:02:57.6]}
4. Nxd4 {[%clk 0:02:52.7]} 4... a6 {[%clk 0:02:58.1]} 5. Bd3 {[%clk 0:02:47.9]}
5... Bc5 {[%clk 0:02:58.6]} 6. Nb3 {[%clk 0:02:47.6]} 6... Ba7 {[%clk
0:02:59.3]} 7. O-O {[%clk 0:02:46.6]} 7... Ne7 {[%clk 0:02:59.8]} 8. Qe2 {[%clk
0:02:47.1]} 8... Nbc6 {[%clk 0:02:58.9]} 9. Be3 {[%clk 0:02:45.2]} 9... O-O
{[%clk 0:02:59.3]} 10. c4 {[%clk 0:02:43]} 10... Bxe3 {[%clk 0:02:43.7]} 11.
Qxe3 {[%clk 0:02:43.9]} 11... d5 {[%clk 0:02:44.1]} 12. cxd5 {[%clk 0:02:41.4]}
12... exd5 {[%clk 0:02:45]} 13. exd5 {[%clk 0:02:29.7]} 13... Nxd5 {[%clk
0:02:44.9]} 14. Qg3 {[%clk 0:02:28.5]} 14... Qf6 {[%clk 0:02:30.9]} 15. Nc3
{[%clk 0:02:24.3]} 15... Nxc3 {[%clk 0:02:20.2]} 16. bxc3 {[%clk 0:02:25.2]}
16... Rd8 {[%clk 0:02:00.2]} 17. Rad1 {[%clk 0:02:08]} 17... Be6 {[%clk
0:01:24.1]} 18. Nc5 {[%clk 0:02:05.4]} 18... b6 {[%clk 0:00:28]} 19. Nxe6 {[%clk
0:01:50.8]} 19... Qxe6 {[%clk 0:00:28.9]} 20. Rfe1 {[%clk 0:01:50.6]} 20... Qf6
{[%clk 0:00:28.5]} 21. Be4 {[%clk 0:01:48.4]} 21... Rxd1 {[%clk 0:00:25.7]} 22.
Rxd1 {[%clk 0:01:49.3]} 22... Re8 {[%clk 0:00:25.4]} 23. Qf3 {[%clk 0:01:37.5]}
23... Ne5 {[%clk 0:00:13.6]} 24. Qxf6 {[%clk 0:01:32.1]} 24... gxf6 {[%clk
0:00:14.5]} 25. f3 {[%clk 0:01:30.6]} 25... Rc8 {[%clk 0:00:10.6]} 26. Rd6
{[%clk 0:01:26.9]} 26... Rxc3 {[%clk 0:00:10.2]} 27. Rxb6 {[%clk 0:01:26.2]}
27... Ra3 {[%clk 0:00:10.6]} 28. Rxf6 {[%clk 0:01:24.8]} 28... Rxa2 {[%clk
0:00:10.5]} 29. h4 {[%clk 0:01:15.3]} 29... Kg7 {[%clk 0:00:09.4]} 30. Rb6
{[%clk 0:01:15]} 30... h6 {[%clk 0:00:05.5]} 31. Rb7 {[%clk 0:01:13.5]} 31...
Rd2 {[%clk 0:00:02.5]} 32. Ra7 {[%clk 0:01:13.1]} 32... Rd6 {[%clk 0:00:02.9]}
33. Kf2 {[%clk 0:01:11.2]} 33... Ng6 {[%clk 0:00:02.7]} 34. h5 {[%clk
0:01:05.5]} 34... Nf4 {[%clk 0:00:02.8]} 35. g4 {[%clk 0:01:06.2]} 35... Ne6
{[%clk 0:00:03.4]} 36. Ke3 {[%clk 0:01:05.9]} 36... Nc5 {[%clk 0:00:03.9]} 37.
Bb1 {[%clk 0:01:04.1]} 37... Rb6 {[%clk 0:00:04.4]} 38. Ba2 {[%clk 0:01:04.1]}
38... Ne6 {[%clk 0:00:04.5]} 39. f4 {[%clk 0:01:02.1]} 39... Rc6 {[%clk
0:00:02.9]} 40. Bd5 {[%clk 0:01:00.8]} 40... Rd6 {[%clk 0:00:03.1]} 41. Ke4
{[%clk 0:00:59.1]} 41... Rb6 {[%clk 0:00:03]} 42. Ke5 {[%clk 0:00:54.2]} 42...
Rb5 {[%clk 0:00:01.5]} 43. f5 {[%clk 0:00:49.1]} 43... Rxd5+ {[%clk 0:00:01.7]}
44. Kxd5 {[%clk 0:00:48.9]} 44... Nf4+ {[%clk 0:00:01.6]} 45. Ke4 {[%clk
0:00:47.9]} 1-0

[Event "Late-Titled-Tuesday-Blitz-January-23-2024"]
[Site "Chess.com"]
[Date "2024.01.23"]
[Round "5"]
[White "Lennis93"]
[Black "Mikhail_Golubev"]
[Result "1/2-1/2"]
[WhiteElo "2711"]
[BlackElo "2527"]
[TimeControl "180+1"]
[EndTime "14:54:23 PST"]
[Termination "Game drawn by repetition"]

1. d4 {[%clk 0:03:00.9]} 1... Nf6 {[%clk 0:02:55.7]} 2. c4 {[%clk 0:03:00.8]}
2... g6 {[%clk 0:02:54.4]} 3. Nf3 {[%clk 0:03:01.3]} 3... Bg7 {[%clk 0:02:54.7]}
4. Nc3 {[%clk 0:03:01.8]} 4... O-O {[%clk 0:02:53.4]} 5. h3 {[%clk 0:02:58.8]}
5... d6 {[%clk 0:02:51.2]} 6. Bf4 {[%clk 0:02:58.3]} 6... Nc6 {[%clk 0:02:40.4]}
7. e3 {[%clk 0:02:56.1]} 7... Qe8 {[%clk 0:02:28.5]} 8. Bh2 {[%clk 0:02:55]}
8... e5 {[%clk 0:02:25.3]} 9. Be2 {[%clk 0:02:55.6]} 9... exd4 {[%clk
0:02:20.2]} 10. Nxd4 {[%clk 0:02:55]} 10... Nxd4 {[%clk 0:02:17.3]} 11. Qxd4
{[%clk 0:02:54.7]} 11... Ne4 {[%clk 0:02:09.1]} 12. Qd3 {[%clk 0:02:53]} 12...
Bf5 {[%clk 0:01:46]} 13. g4 {[%clk 0:02:23.9]} 13... Nxf2 {[%clk 0:01:37.4]} 14.
Qd5 {[%clk 0:02:22.1]} 14... Bxc3+ {[%clk 0:01:30.2]} 15. bxc3 {[%clk
0:02:20.5]} 15... Be4 {[%clk 0:01:29.9]} 16. Kxf2 {[%clk 0:02:18.2]} 16... Bxd5
{[%clk 0:01:27.8]} 17. cxd5 {[%clk 0:02:19.1]} 17... f5 {[%clk 0:01:26]} 18. g5
{[%clk 0:02:18.2]} 18... Qe4 {[%clk 0:01:17.8]} 19. Bf4 {[%clk 0:02:09.9]} 19...
Qxd5 {[%clk 0:01:15]} 20. h4 {[%clk 0:02:09.8]} 20... Rae8 {[%clk 0:01:10]} 21.
h5 {[%clk 0:02:09.5]} 21... Re4 {[%clk 0:01:06.4]} 22. hxg6 {[%clk 0:02:08.8]}
22... hxg6 {[%clk 0:01:05]} 23. Rh6 {[%clk 0:02:07.4]} 23... Rxf4+ {[%clk
0:00:35.2]} 24. exf4 {[%clk 0:02:08.3]} 24... Re8 {[%clk 0:00:27.6]} 25. Rxg6+
{[%clk 0:02:06.8]} 25... Kf7 {[%clk 0:00:25]} 26. Bh5 {[%clk 0:01:54.9]} 26...
Qd2+ {[%clk 0:00:23.1]} 27. Kg1 {[%clk 0:01:51.6]} 27... Qe3+ {[%clk 0:00:13.6]}
28. Kg2 {[%clk 0:01:42]} 28... Qe4+ {[%clk 0:00:12.8]} 29. Kh3 {[%clk
0:01:35.1]} 29... Ke7 {[%clk 0:00:10.2]} 30. Rg7+ {[%clk 0:01:31.1]} 30... Kd8
{[%clk 0:00:10.4]} 31. Bxe8 {[%clk 0:01:30.9]} 31... Qf3+ {[%clk 0:00:10.3]} 32.
Kh2 {[%clk 0:01:27.8]} 32... Qxf4+ {[%clk 0:00:10.6]} 33. Kg2 {[%clk 0:01:23.1]}
33... Qg4+ {[%clk 0:00:06.2]} 34. Kf2 {[%clk 0:01:22.4]} 34... Qf4+ {[%clk
0:00:05.7]} 35. Ke2 {[%clk 0:01:22.1]} 35... Qe4+ {[%clk 0:00:05.5]} 36. Kd2
{[%clk 0:01:21.8]} 36... Qd5+ {[%clk 0:00:03.2]} 37. Kc2 {[%clk 0:01:20.5]}
37... Qe4+ {[%clk 0:00:02.3]} 38. Kb3 {[%clk 0:01:18.7]} 38... Qd5+ {[%clk
0:00:02.5]} 39. Ka3 {[%clk 0:01:11]} 39... Qc5+ {[%clk 0:00:03]} 40. Kb2 {[%clk
0:01:10]} 40... Qb6+ {[%clk 0:00:03.5]} 41. Kc2 {[%clk 0:01:00.4]} 41... Qf2+
{[%clk 0:00:03.4]} 42. Kd3 {[%clk 0:00:58.1]} 42... Qf3+ {[%clk 0:00:03.9]} 43.
Kc4 {[%clk 0:00:53.7]} 43... Qe4+ {[%clk 0:00:04.4]} 44. Kb3 {[%clk 0:00:50.4]}
44... Qd5+ {[%clk 0:00:05.1]} 45. Kb2 {[%clk 0:00:44.7]} 45... Qd2+ {[%clk
0:00:05.4]} 46. Kb3 {[%clk 0:00:45.2]} 46... Qd5+ {[%clk 0:00:05.7]} 1/2-1/2

[Event "Late-Titled-Tuesday-Blitz-January-23-2024"]
[Site "Chess.com"]
[Date "2024.01.23"]
[Round "5"]
[White "messiboca"]
[Black "Bigfish1995"]
[Result "0-1"]
[WhiteElo "2770"]
[BlackElo "3131"]
[TimeControl "180+1"]
[EndTime "14:54:25 PST"]
[Termination "Bigfish1995 won on time"]

1. c4 {[%clk 0:03:00.9]} 1... e5 {[%clk 0:02:57.6]} 2. e3 {[%clk 0:03:01.4]}
2... Nf6 {[%clk 0:02:56.5]} 3. Nc3 {[%clk 0:03:00.9]} 3... Nc6 {[%clk 0:02:55]}
4. Nf3 {[%clk 0:03:01.4]} 4... Be7 {[%clk 0:02:51.4]} 5. a3 {[%clk 0:03:00.3]}
5... O-O {[%clk 0:02:50]} 6. Qc2 {[%clk 0:03:00.7]} 6... a5 {[%clk 0:02:40.6]}
7. b3 {[%clk 0:03:00.1]} 7... Re8 {[%clk 0:02:39.8]} 8. Bb2 {[%clk 0:03:00.2]}
8... Bf8 {[%clk 0:02:40.4]} 9. Bd3 {[%clk 0:02:35.8]} 9... d6 {[%clk 0:02:39.7]}
10. h4 {[%clk 0:02:13.4]} 10... h6 {[%clk 0:02:29.7]} 11. Ng5 {[%clk 0:02:09.4]}
11... Be6 {[%clk 0:02:19]} 12. Nd5 {[%clk 0:01:52.7]} 12... Be7 {[%clk
0:01:48.5]} 13. Bh7+ {[%clk 0:00:44.5]} 13... Kf8 {[%clk 0:01:48]} 14. Nxe6+
{[%clk 0:00:43.9]} 14... fxe6 {[%clk 0:01:47.7]} 15. Nc3 {[%clk 0:00:39.9]}
15... Nxh7 {[%clk 0:01:40.5]} 16. Qxh7 {[%clk 0:00:40.8]} 16... Kf7 {[%clk
0:01:39.3]} 17. h5 {[%clk 0:00:38.4]} 17... Bf6 {[%clk 0:01:29.6]} 18. Ne4
{[%clk 0:00:36.7]} 18... Ne7 {[%clk 0:01:21.2]} 19. Nxf6 {[%clk 0:00:35]} 19...
Rh8 {[%clk 0:01:21.7]} 20. Qe4 {[%clk 0:00:22.3]} 20... gxf6 {[%clk 0:01:22.1]}
21. f4 {[%clk 0:00:18.6]} 21... d5 {[%clk 0:01:19.9]} 22. cxd5 {[%clk
0:00:17.2]} 22... exd5 {[%clk 0:01:12.1]} 23. Qc2 {[%clk 0:00:16.6]} 23... e4
{[%clk 0:01:08.6]} 24. g4 {[%clk 0:00:15]} 24... Rg8 {[%clk 0:01:06.5]} 25. g5
{[%clk 0:00:15.5]} 25... fxg5 {[%clk 0:01:03.4]} 26. fxg5 {[%clk 0:00:16.1]}
26... Rxg5 {[%clk 0:01:03]} 27. O-O-O {[%clk 0:00:16.6]} 27... Ke6 {[%clk
0:01:00.1]} 28. Rdf1 {[%clk 0:00:15.1]} 28... Nf5 {[%clk 0:00:58.3]} 29. Qc3
{[%clk 0:00:10.4]} 29... Kd7 {[%clk 0:00:43]} 30. Rhg1 {[%clk 0:00:07.3]} 30...
Ng3 {[%clk 0:00:39.6]} 31. Rf7+ {[%clk 0:00:06.8]} 31... Kc8 {[%clk 0:00:38.2]}
32. Kb1 {[%clk 0:00:06.8]} 32... Ne2 {[%clk 0:00:35.4]} 33. Rxc7+ {[%clk
0:00:04.9]} 33... Kb8 {[%clk 0:00:29.3]} 34. Rxg5 {[%clk 0:00:02.5]} 34... Nxc3+
{[%clk 0:00:28.5]} 35. Bxc3 {[%clk 0:00:01.4]} 35... Qxg5 {[%clk 0:00:28.5]} 0-1

[Event "Late-Titled-Tuesday-Blitz-January-23-2024"]
[Site "Chess.com"]
[Date "2024.01.23"]
[Round "5"]
[White "Defend1r"]
[Black "vladoboch"]
[Result "1-0"]
[WhiteElo "2567"]
[BlackElo "2403"]
[TimeControl "180+1"]
[EndTime "14:54:27 PST"]
[Termination "Defend1r won on time"]

1. e4 {[%clk 0:03:00.9]} 1... e5 {[%clk 0:02:59.7]} 2. Nf3 {[%clk 0:03:00.7]}
2... Nc6 {[%clk 0:03:00.4]} 3. Bc4 {[%clk 0:02:57.9]} 3... Nf6 {[%clk
0:02:59.6]} 4. d4 {[%clk 0:02:55.8]} 4... Nxe4 {[%clk 0:02:39.9]} 5. Bd5 {[%clk
0:02:51.5]} 5... Nf6 {[%clk 0:02:33.8]} 6. dxe5 {[%clk 0:02:47.5]} 6... Nxd5
{[%clk 0:02:33.7]} 7. Qxd5 {[%clk 0:02:47]} 7... d6 {[%clk 0:02:27.2]} 8. exd6
{[%clk 0:02:43.8]} 8... Be6 {[%clk 0:02:20.2]} 9. d7+ {[%clk 0:02:39.3]} 9...
Bxd7 {[%clk 0:02:13.1]} 10. O-O {[%clk 0:02:36.6]} 10... Bd6 {[%clk 0:02:08.4]}
11. Qe4+ {[%clk 0:02:28.2]} 11... Qe7 {[%clk 0:01:57.3]} 12. Qc4 {[%clk
0:01:55.4]} 12... Be6 {[%clk 0:01:47]} 13. Qa4 {[%clk 0:01:53.1]} 13... O-O-O
{[%clk 0:01:40.9]} 14. Nc3 {[%clk 0:01:46.9]} 14... Kb8 {[%clk 0:01:32.8]} 15.
Ne4 {[%clk 0:01:31.5]} 15... h6 {[%clk 0:01:24.4]} 16. Be3 {[%clk 0:01:15.4]}
16... Bd5 {[%clk 0:01:20.1]} 17. Nxd6 {[%clk 0:01:13.1]} 17... Qxd6 {[%clk
0:01:18.4]} 18. Nd4 {[%clk 0:01:08]} 18... Nxd4 {[%clk 0:01:05.3]} 19. Qxd4
{[%clk 0:01:08.9]} 19... b6 {[%clk 0:00:54.5]} 20. f3 {[%clk 0:00:50.6]} 20...
Qg6 {[%clk 0:00:46.4]} 21. Qc3 {[%clk 0:00:45.2]} 21... h5 {[%clk 0:00:40.3]}
22. a4 {[%clk 0:00:43]} 22... h4 {[%clk 0:00:30.9]} 23. h3 {[%clk 0:00:37]}
23... Bb7 {[%clk 0:00:19.4]} 24. a5 {[%clk 0:00:34.7]} 24... Rh5 {[%clk
0:00:18.9]} 25. axb6 {[%clk 0:00:33.2]} 25... axb6 {[%clk 0:00:13.7]} 26. Bf4
{[%clk 0:00:30.1]} 26... Rc5 {[%clk 0:00:12.3]} 27. Qe3 {[%clk 0:00:20.4]} 27...
Rxc2 {[%clk 0:00:11.8]} 28. Rf2 {[%clk 0:00:20.9]} 28... Rxf2 {[%clk 0:00:09.2]}
29. Qxf2 {[%clk 0:00:21.5]} 29... Qf6 {[%clk 0:00:03.6]} 30. Qe3 {[%clk
0:00:19]} 30... Qc6 {[%clk 0:00:02.2]} 31. Rc1 {[%clk 0:00:18.9]} 31... Qb5
{[%clk 0:00:01.5]} 32. Bxc7+ {[%clk 0:00:18.5]} 32... Kc8 {[%clk 0:00:01.9]} 33.
Bxb6+ {[%clk 0:00:17]} 1-0

[Event "Late-Titled-Tuesday-Blitz-January-23-2024"]
[Site "Chess.com"]
[Date "2024.01.23"]
[Round "5"]
[White "brunoo2003"]
[Black "stregachess"]
[Result "1-0"]
[WhiteElo "2531"]
[BlackElo "2108"]
[TimeControl "180+1"]
[EndTime "14:54:29 PST"]
[Termination "brunoo2003 won by resignation"]

1. d4 {[%clk 0:02:52.1]} 1... Nf6 {[%clk 0:02:58.7]} 2. c4 {[%clk 0:02:53]} 2...
e5 {[%clk 0:02:58.5]} 3. dxe5 {[%clk 0:02:41.4]} 3... Ne4 {[%clk 0:02:58.6]} 4.
e6 {[%clk 0:02:42.3]} 4... fxe6 {[%clk 0:02:34.8]} 5. Qc2 {[%clk 0:02:32.5]}
5... Bb4+ {[%clk 0:02:29.6]} 6. Nd2 {[%clk 0:02:27]} 6... Nxd2 {[%clk
0:02:18.4]} 7. Bxd2 {[%clk 0:02:27.9]} 7... Bxd2+ {[%clk 0:02:17.5]} 8. Qxd2
{[%clk 0:02:28.8]} 8... O-O {[%clk 0:02:17.4]} 9. Nf3 {[%clk 0:02:28.3]} 9... d6
{[%clk 0:01:59.9]} 10. e3 {[%clk 0:02:27.3]} 10... Nc6 {[%clk 0:01:58.7]} 11.
Bd3 {[%clk 0:02:23.5]} 11... e5 {[%clk 0:01:42.1]} 12. h4 {[%clk 0:02:20.4]}
12... h6 {[%clk 0:01:31.5]} 13. Be4 {[%clk 0:02:14.5]} 13... Be6 {[%clk
0:01:20.1]} 14. b3 {[%clk 0:02:00.6]} 14... Qf6 {[%clk 0:01:19.5]} 15. h5 {[%clk
0:01:53.2]} 15... Rab8 {[%clk 0:01:04.7]} 16. O-O-O {[%clk 0:01:46]} 16... a5
{[%clk 0:01:01.4]} 17. Rdg1 {[%clk 0:01:33.9]} 17... a4 {[%clk 0:00:44.5]} 18.
g4 {[%clk 0:01:31.7]} 18... axb3 {[%clk 0:00:44.4]} 19. axb3 {[%clk 0:01:31.8]}
19... Ra8 {[%clk 0:00:39.8]} 20. Kb2 {[%clk 0:01:22.2]} 20... Ra7 {[%clk
0:00:30]} 21. g5 {[%clk 0:01:12.4]} 21... hxg5 {[%clk 0:00:29.4]} 22. Rxg5
{[%clk 0:01:13.3]} 22... Rfa8 {[%clk 0:00:28]} 23. Kc3 {[%clk 0:01:11.2]} 23...
Na5 {[%clk 0:00:24.4]} 24. Rg6 {[%clk 0:00:46.7]} 24... Qf7 {[%clk 0:00:19.7]}
25. Rxe6 {[%clk 0:00:42]} 25... Nxc4 {[%clk 0:00:18.2]} 26. Kxc4 {[%clk
0:00:22.8]} 26... b5+ {[%clk 0:00:17.2]} 27. Kc3 {[%clk 0:00:20.7]} 27... c5
{[%clk 0:00:17.2]} 28. Bd5 {[%clk 0:00:19.5]} 28... b4+ {[%clk 0:00:16.5]} 29.
Kc4 {[%clk 0:00:19]} 29... Kf8 {[%clk 0:00:16]} 30. h6 {[%clk 0:00:15.2]} 30...
Ra2 {[%clk 0:00:11.4]} 31. h7 {[%clk 0:00:14.2]} 31... Qxe6 {[%clk 0:00:08.8]}
32. h8=Q+ {[%clk 0:00:11.8]} 32... Ke7 {[%clk 0:00:08.3]} 33. Qxg7+ {[%clk
0:00:12.1]} 33... Kd8 {[%clk 0:00:07.5]} 34. Bxe6 {[%clk 0:00:12.3]} 34... R8a7
{[%clk 0:00:05.7]} 35. Qf8+ {[%clk 0:00:11.6]} 1-0